fUST/lending_fUST_20240514
["ID","MTS","AMOUNT","RATE_DAILY","PERIOD"]
[326983474,1715679054927,-500.0,0.00080547,120]
[326983475,1715679054936,-2500.06,0.00080547,120]
[326983476,1715679054946,-1154.2,0.00080821,120]
[326983477,1715679054955,-500.0,0.00080821,120]
[326983478,1715679054964,-500.0,0.00080821,120]
[326983479,1715679054973,-500.0,0.00080821,120]
[326983480,1715679054983,-500.0,0.00080821,120]
[326983481,1715679054992,-500.0,0.00080821,7]
[326983482,1715679055001,-1750.81,0.00080821,120]
[326983483,1715679055011,-500.0,0.00080821,120]
[326983484,1715679055020,-1651.73,0.00080821,120]
[326983485,1715679055030,-1162.28,0.00080821,120]
[326983486,1715679055039,-500.0,0.00080821,120]
[326983487,1715679055048,-264.70585675,0.00080821,120]
[326983488,1715679055058,-1165.55,0.00080821,4]
[326983489,1715679055067,-945.35,0.00080821,120]
[326983490,1715679055076,-1094.29,0.00080821,120]
[326983491,1715679055085,-500.0,0.00080821,7]
[326983492,1715679055094,-3190.22,0.00080821,120]
[326983493,1715679055104,-500.0,0.00080821,120]
[326983494,1715679055114,-500.0,0.00080821,120]
[326983495,1715679055123,-371.06472074,0.00080821,120]
[326983496,1715679055132,-13261.17,0.00080821,120]
[326983497,1715679055141,-967.1,0.00080821,120]
[326983498,1715679055150,-1228.21,0.00080821,120]
[326983499,1715679055160,-500.0,0.00080821,120]
[326983500,1715679055169,-500.0,0.00080821,120]
[326983501,1715679055179,-623.99,0.00080821,120]
[326983502,1715679055188,-500.0,0.00080821,120]
[326983503,1715679055198,-2500.06,0.00080821,120]
[326983504,1715679055207,-1154.2,0.00081095,120]
[326983505,1715679055216,-500.0,0.00081095,120]
[326983506,1715679055225,-500.0,0.00081095,120]
[326983507,1715679055234,-500.0,0.00081095,120]
[326983508,1715679055244,-500.0,0.00081095,120]
[326983509,1715679055253,-500.0,0.00081095,7]
[326983510,1715679055263,-1750.81,0.00081095,120]
[326983511,1715679055272,-500.0,0.00081095,120]
[326983512,1715679055281,-1651.73,0.00081095,120]
[326983513,1715679055290,-1162.28,0.00081095,120]
[326983514,1715679055299,-500.0,0.00081095,120]
[326983515,1715679055308,-1165.55,0.00081095,4]
[326983516,1715679055317,-945.35,0.00081095,120]
[326983517,1715679055326,-1094.29,0.00081095,120]
[326983518,1715679055335,-500.0,0.00081095,7]
[326983519,1715679055345,-3190.22,0.00081095,120]
[326983520,1715679055354,-500.0,0.00081095,120]
[326983521,1715679055364,-500.0,0.00081095,120]
[326983522,1715679055373,-13261.17,0.00081095,120]
[326983523,1715679055383,-967.1,0.00081095,120]
[326983524,1715679055393,-1228.21,0.00081095,120]
[326983525,1715679055402,-500.0,0.00081095,120]
[326983526,1715679055411,-500.0,0.00081095,120]
[326983527,1715679055421,-623.99,0.00081095,120]
[326983528,1715679055431,-500.0,0.00081095,120]
[326983529,1715679055440,-2500.06,0.00081095,120]
[326983530,1715679055449,-1154.2,0.00081369,120]
[326983531,1715679055458,-500.0,0.00081369,120]
[326983532,1715679055467,-500.0,0.00081369,120]
[326983533,1715679055477,-500.0,0.00081369,120]
[326983534,1715679055486,-500.0,0.00081369,120]
[326983535,1715679055494,-629.89526891,0.00081369,7]
[326983536,1715679055504,-1750.81,0.00081369,120]
[326983537,1715679055513,-500.0,0.00081369,120]
[326983538,1715679055523,-1651.73,0.00081369,120]
[326983539,1715679055532,-1162.28,0.00081369,120]
[326983540,1715679055541,-500.0,0.00081369,120]
[326983541,1715679055551,-1165.55,0.00081369,4]
[326983542,1715679055560,-945.35,0.00081369,120]
[326983543,1715679055570,-1094.29,0.00081369,120]
[326983544,1715679055579,-335.53790405,0.00081369,7]
[326983545,1715679055589,-3190.22,0.00081369,120]
[326983546,1715679055598,-500.0,0.00081369,120]
[326983547,1715679055608,-500.0,0.00081369,120]
[326983548,1715679055617,-13261.17,0.00081369,120]
[326983549,1715679055627,-967.1,0.00081369,120]
[326983550,1715679055636,-1228.21,0.00081369,120]
[326983551,1715679055646,-500.0,0.00081369,120]
[326983552,1715679055655,-500.0,0.00081369,120]
[326983553,1715679055665,-623.99,0.00081369,120]
[326983554,1715679055675,-500.0,0.00081369,120]
[326983555,1715679055684,-2500.06,0.00081369,120]
[326983556,1715679055694,-1154.2,0.00081643,120]
[326983557,1715679055703,-500.0,0.00081643,120]
[326983558,1715679055716,-500.0,0.00081643,120]
[326983559,1715679055725,-500.0,0.00081643,120]
[326983560,1715679055735,-500.0,0.00081643,120]
[326983561,1715679055744,-1750.81,0.00081643,120]
[326983562,1715679055754,-500.0,0.00081643,120]
[326983563,1715679055764,-1651.73,0.00081643,120]
[326983564,1715679055774,-500.0,0.00081643,120]
[326983565,1715679055784,-1162.28,0.00081643,120]
[326983566,1715679055795,-1165.55,0.00081643,4]
[326983567,1715679055805,-945.35,0.00081643,120]
[326983568,1715679055815,-1094.29,0.00081643,120]
[326983569,1715679055825,-3190.22,0.00081643,120]
[326983570,1715679055835,-500.0,0.00081643,120]
[326983571,1715679055845,-243.52098008,0.00081643,120]
[326983572,1715679055855,-13261.17,0.00081643,120]
[326983573,1715679055865,-967.1,0.00081643,120]
[326983574,1715679055874,-1228.21,0.00081643,120]
[326983575,1715679055884,-5000.0,0.00081643,120]
[326983576,1715679055894,-5000.0,0.00081643,120]
[326983577,1715679055903,-5000.0,0.00081643,120]
[326983578,1715679055913,-5000.0,0.00081643,120]
[326983579,1715679055923,-5000.0,0.00081643,120]
[326983580,1715679055932,-5000.0,0.00081643,120]
[326983581,1715679055942,-5000.0,0.00081643,120]
[326983582,1715679055951,-5000.0,0.00081643,120]
[326983583,1715679055961,-5000.0,0.00081643,120]
[326983584,1715679055971,-500.0,0.00081643,120]
[326983585,1715679055980,-500.0,0.00081643,120]
[326983586,1715679055990,-623.99,0.00081643,120]
[326983587,1715679055999,-500.0,0.00081643,120]
[326983588,1715679056009,-2500.06,0.00081643,120]
[326983589,1715679056019,-1154.2,0.00081917,120]
[326983590,1715679056029,-227.50108191,0.00081917,120]
[326983591,1715679056039,-500.0,0.00081917,120]
[326983592,1715679056048,-500.0,0.00081917,120]
[326983593,1715679056058,-500.0,0.00081917,120]
[326983594,1715679056067,-1750.81,0.00081917,120]
[326983595,1715679056076,-500.0,0.00081917,120]
[326983596,1715679056085,-1651.73,0.00081917,120]
[326983597,1715679056095,-500.0,0.00081917,120]
[326983598,1715679056104,-1162.28,0.00081917,120]
[326983599,1715679056113,-1165.55,0.00081917,4]
[326983600,1715679056123,-945.35,0.00081917,120]
[326983601,1715679056133,-1094.29,0.00081917,120]
[326983602,1715679056143,-3190.22,0.00081917,120]
[326983603,1715679056152,-500.0,0.00081917,120]
[326983604,1715679056162,-13261.17,0.00081917,120]
[326983605,1715679056172,-967.1,0.00081917,120]
[326983606,1715679056182,-1228.21,0.00081917,120]
[326983607,1715679056191,-5000.0,0.00081917,120]
[326983608,1715679056201,-500.0,0.00081917,120]
[326983609,1715679056212,-500.0,0.00081917,120]
[326983610,1715679056222,-623.99,0.00081917,120]
[326983611,1715679056231,-500.0,0.00081917,120]
[326983612,1715679056242,-2500.06,0.00081917,120]
[326983613,1715679056251,-52885.820001,0.00082,120]
[326983614,1715679056261,-1357.07912953,0.0008219,7]
[326983615,1715679056271,-15500.03497823,0.00082191,120]
[326983616,1715679056280,-1154.2,0.00082191,120]
[326983617,1715679056290,-500.0,0.00082191,120]
[326983618,1715679056300,-502.42833769,0.00082191,120]
[326983619,1715679056310,-500.0,0.00082191,120]
[326983620,1715679056319,-500.0,0.00082191,120]
[326983621,1715679056329,-1750.81,0.00082191,120]
[326983622,1715679056338,-500.0,0.00082191,120]
[326983623,1715679056348,-500.0,0.00082191,120]
[326983624,1715679056357,-500.0,0.00082191,120]
[326983625,1715679056367,-500.0,0.00082191,120]
[326983626,1715679056376,-500.0,0.00082191,120]
[326983627,1715679056385,-500.0,0.00082191,120]
[326983628,1715679056394,-500.0,0.00082191,120]
[326983629,1715679056404,-500.0,0.00082191,120]
[326983630,1715679056413,-566.15256384,0.00082191,120]
[326983631,1715679056422,-500.0,0.00082191,120]
[326983632,1715679056431,-500.0,0.00082191,120]
[326983633,1715679056441,-500.0,0.00082191,120]
[326983634,1715679056450,-500.0,0.00082191,120]
[326983635,1715679056460,-346.07369953,0.00082191,120]
[326983636,1715679056469,-500.0,0.00082191,120]
[326983637,1715679056478,-1651.73,0.00082191,120]
[326983638,1715679056488,-500.0,0.00082191,120]
[326983639,1715679056497,-1162.28,0.00082191,120]
[326983640,1715679056507,-1165.55,0.00082191,4]
[326983641,1715679056516,-945.35,0.00082191,120]
[326983642,1715679056525,-1094.29,0.00082191,120]
[326983643,1715679056605,-3190.22,0.00082191,120]
[326983644,1715679056614,-500.0,0.00082191,120]
[326983645,1715679056624,-13261.17,0.00082191,120]
[326983646,1715679056633,-967.1,0.00082191,120]
[326983647,1715679056642,-1228.21,0.00082191,120]
[326983648,1715679056651,-5000.0,0.00082191,120]
[326983649,1715679056661,-5649.66,0.00082191,120]
[326983650,1715679056670,-500.0,0.00082191,120]
[326983651,1715679056680,-500.0,0.00082191,120]
[326983652,1715679056689,-623.99,0.00082191,120]
[326983653,1715679056699,-500.0,0.00082191,120]
[326983654,1715679056709,-2500.06,0.00082191,120]
[326983655,1715679056720,-700.0,0.00082192,30]
[326983656,1715679056730,-1154.2,0.00082465,120]
[326983657,1715679056742,-500.0,0.00082465,120]
[326983658,1715679056752,-500.0,0.00082465,120]
[326983659,1715679056761,-500.0,0.00082465,120]
[326983660,1715679056770,-1750.81,0.00082465,120]
[326983661,1715679056779,-500.0,0.00082465,120]
[326983662,1715679056789,-1651.73,0.00082465,120]
[326983663,1715679056799,-500.0,0.00082465,120]
[326983664,1715679056808,-1162.28,0.00082465,120]
[326983665,1715679056820,-1165.55,0.00082465,4]
[326983666,1715679056831,-945.35,0.00082465,120]
[326983667,1715679056841,-1094.29,0.00082465,120]
[326983668,1715679056852,-3190.22,0.00082465,120]
[326983669,1715679056862,-500.0,0.00082465,120]
[326983670,1715679056873,-13261.17,0.00082465,120]
[326983671,1715679056882,-967.1,0.00082465,120]
[326983672,1715679056891,-1228.21,0.00082465,120]
[326983673,1715679056899,-3629.36904885,0.00082465,120]
[326983674,1715679056909,-500.0,0.00082465,120]
[326983675,1715679056918,-504.08046057,0.00082465,120]
[326983676,1715679056927,-623.99,0.00082465,120]
[326983677,1715679056937,-500.0,0.00082465,120]
[326983678,1715679056946,-2500.06,0.00082465,120]
[326983679,1715679056955,-5000.0,0.000825,120]
[326983680,1715679056963,-154.82351252,0.00082636,7]
[326983681,1715679056972,-500.0,0.00082636,30]
[326983682,1715679056982,-1154.2,0.00082739,120]
[326983683,1715679056992,-500.0,0.00082739,120]
[326983684,1715679057002,-505.68355684,0.00082739,120]
[326983685,1715679057013,-500.0,0.00082739,120]
[326983686,1715679057022,-1750.81,0.00082739,120]
[326983687,1715679057032,-500.0,0.00082739,120]
[326983688,1715679057044,-1651.73,0.00082739,120]
[326983689,1715679057054,-500.0,0.00082739,120]
[326983690,1715679057065,-1162.28,0.00082739,120]
[326983691,1715679057075,-1165.55,0.00082739,4]
[326983692,1715679057086,-945.35,0.00082739,120]
[326983693,1715679057095,-1094.29,0.00082739,120]
[326983694,1715679057104,-3190.22,0.00082739,120]
[326983695,1715679057114,-500.0,0.00082739,120]
[326983696,1715679057125,-13261.17,0.00082739,120]
[326983697,1715679057134,-967.1,0.00082739,120]
[326983698,1715679057145,-1228.21,0.00082739,120]
[326983699,1715679057154,-500.0,0.00082739,120]
[326983700,1715679057163,-623.99,0.00082739,120]
[326983701,1715679057174,-500.0,0.00082739,120]
[326983702,1715679057183,-2500.06,0.00082739,120]
[326983703,1715679057193,-264.8811602,0.00083,120]
[326983704,1715679057205,-1154.2,0.00083013,120]
[326983705,1715679057214,-500.0,0.00083013,120]
[326983706,1715679057223,-528.57375491,0.00083013,120]
[326983707,1715679057233,-1750.81,0.00083013,120]
[326983708,1715679057243,-500.0,0.00083013,120]
[326983709,1715679057253,-1651.73,0.00083013,120]
[326983710,1715679057264,-500.0,0.00083013,120]
[326983711,1715679057273,-1162.28,0.00083013,120]
[326983712,1715679057282,-1165.55,0.00083013,4]
[326983713,1715679057292,-945.35,0.00083013,120]
[326983714,1715679057301,-1094.29,0.00083013,120]
[326983715,1715679057310,-3190.22,0.00083013,120]
[326983716,1715679057319,-500.0,0.00083013,120]
[326983717,1715679057329,-13261.17,0.00083013,120]
[326983718,1715679057338,-967.1,0.00083013,120]
[326983719,1715679057347,-1228.21,0.00083013,120]
[326983720,1715679057356,-500.0,0.00083013,120]
[326983721,1715679057365,-623.99,0.00083013,120]
[326983722,1715679057374,-500.0,0.00083013,120]
[326983723,1715679057384,-2500.06,0.00083013,120]
[326983724,1715679057392,-1154.2,0.00083287,120]
[326983725,1715679057401,-500.0,0.00083287,120]
[326983726,1715679057411,-1750.81,0.00083287,120]
[326983727,1715679057420,-500.0,0.00083287,120]
[326983728,1715679057430,-1651.73,0.00083287,120]
[326983729,1715679057439,-500.0,0.00083287,120]
[326983730,1715679057448,-1162.28,0.00083287,120]
[326983731,1715679057457,-1165.55,0.00083287,4]
[326983732,1715679057466,-945.35,0.00083287,120]
[326983733,1715679057475,-1094.29,0.00083287,120]
[326983734,1715679057485,-3190.22,0.00083287,120]
[326983735,1715679057494,-500.0,0.00083287,120]
[326983736,1715679057503,-13261.17,0.00083287,120]
[326983737,1715679057513,-967.1,0.00083287,120]
[326983738,1715679057523,-1228.21,0.00083287,120]
[326983739,1715679057532,-500.0,0.00083287,120]
[326983740,1715679057541,-623.99,0.00083287,120]
[326983741,1715679057550,-500.0,0.00083287,120]
[326983742,1715679057559,-2500.06,0.00083287,120]
[326983743,1715679057569,-1154.2,0.00083561,120]
[326983744,1715679057578,-500.0,0.00083561,120]
[326983745,1715679057587,-1750.81,0.00083561,120]
[326983746,1715679057596,-500.0,0.00083561,120]
[326983747,1715679057606,-1651.73,0.00083561,120]
[326983748,1715679057615,-500.0,0.00083561,120]
[326983749,1715679057624,-1162.28,0.00083561,120]
[326983750,1715679057633,-1165.55,0.00083561,4]
[326983751,1715679057643,-945.35,0.00083561,120]
[326983752,1715679057652,-1094.29,0.00083561,120]
[326983753,1715679057662,-3190.22,0.00083561,120]
[326983754,1715679057671,-500.0,0.00083561,120]
[326983755,1715679057681,-13261.17,0.00083561,120]
[326983756,1715679057690,-967.1,0.00083561,120]
[326983757,1715679057699,-1228.21,0.00083561,120]
[326983758,1715679057711,-346.37826513,0.00083561,120]
[326983759,1715679057721,-623.99,0.00083561,120]
[326983760,1715679057731,-500.0,0.00083561,120]
[326983761,1715679057740,-2500.06,0.00083561,120]
[326983762,1715679057749,-1154.2,0.00083835,120]
[326983763,1715679057758,-500.0,0.00083835,120]
[326983764,1715679057768,-1750.81,0.00083835,120]
[326983765,1715679057777,-500.0,0.00083835,120]
[326983766,1715679057786,-1651.73,0.00083835,120]
[326983767,1715679057796,-547.81317786,0.00083835,120]
[326983768,1715679057806,-1162.28,0.00083835,120]
[326983769,1715679057815,-1165.55,0.00083835,4]
[326983770,1715679057824,-945.35,0.00083835,120]
[326983771,1715679057833,-1094.29,0.00083835,120]
[326983772,1715679057842,-3190.22,0.00083835,120]
[326983773,1715679057851,-500.0,0.00083835,120]
[326983774,1715679057861,-13261.17,0.00083835,120]
[326983775,1715679057871,-967.1,0.00083835,120]
[326983776,1715679057880,-1228.21,0.00083835,120]
[326983777,1715679057889,-623.99,0.00083835,120]
[326983778,1715679057900,-500.0,0.00083835,120]
[326983779,1715679057910,-2500.06,0.00083835,120]
[326983780,1715679057920,-1154.2,0.00084109,120]
[326983781,1715679057930,-500.0,0.00084109,120]
[326983782,1715679057939,-1750.81,0.00084109,120]
[326983783,1715679057948,-500.0,0.00084109,120]
[326983784,1715679057957,-1651.73,0.00084109,120]
[326983785,1715679057967,-1162.28,0.00084109,120]
[326983786,1715679057977,-1165.55,0.00084109,4]
[326983787,1715679057987,-945.35,0.00084109,120]
[326983788,1715679057996,-1094.29,0.00084109,120]
[326983789,1715679058005,-3190.22,0.00084109,120]
[326983790,1715679058015,-500.0,0.00084109,120]
[326983791,1715679058024,-13261.17,0.00084109,120]
[326983792,1715679058033,-967.1,0.00084109,120]
[326983793,1715679058044,-1228.21,0.00084109,120]
[326983794,1715679058053,-623.99,0.00084109,120]
[326983795,1715679058064,-500.0,0.00084109,120]
[326983796,1715679058074,-2500.06,0.00084109,120]
[326983797,1715679058083,-562.0,0.000843,40]
[326983798,1715679058092,-309.0,0.0008437,35]
[326983799,1715679058101,-309.0,0.0008438,35]
[326983800,1715679058110,-1154.2,0.00084383,120]
[326983801,1715679058120,-500.0,0.00084383,120]
[326983802,1715679058129,-1750.81,0.00084383,120]
[326983803,1715679058137,-500.0,0.00084383,120]
[326983804,1715679058147,-1651.73,0.00084383,120]
[326983805,1715679058216,-1162.28,0.00084383,120]
[326983806,1715679058226,-1165.55,0.00084383,4]
[326983807,1715679058236,-945.35,0.00084383,120]
[326983808,1715679058245,-1094.29,0.00084383,120]
[326983809,1715679058254,-3190.22,0.00084383,120]
[326983810,1715679058265,-500.0,0.00084383,120]
[326983811,1715679058274,-13261.17,0.00084383,120]
[326983812,1715679058283,-967.1,0.00084383,120]
[326983813,1715679058292,-1228.21,0.00084383,120]
[326983814,1715679058303,-623.99,0.00084383,120]
[326983815,1715679058315,-500.0,0.00084383,120]
[326983816,1715679058327,-2500.06,0.00084383,120]
[326983817,1715679058338,-309.0,0.0008439,35]
[326983818,1715679058350,-412948.60837751,0.000844,30]
[326983819,1715679058360,-1154.2,0.00084657,120]
[326983820,1715679058369,-500.0,0.00084657,120]
[326983821,1715679058378,-1750.81,0.00084657,120]
[326983822,1715679058387,-500.0,0.00084657,120]
[326983823,1715679058396,-1651.73,0.00084657,120]
[326983824,1715679058405,-1162.28,0.00084657,120]
[326983825,1715679058414,-1165.55,0.00084657,4]
[326983826,1715679058423,-945.35,0.00084657,120]
[326983827,1715679058432,-1094.29,0.00084657,120]
[326983828,1715679058441,-3190.22,0.00084657,120]
[326983829,1715679058450,-500.0,0.00084657,120]
[326983830,1715679058459,-13261.17,0.00084657,120]
[326983831,1715679058468,-967.1,0.00084657,120]
[326983832,1715679058479,-1228.21,0.00084657,120]
[326983833,1715679058494,-623.99,0.00084657,120]
[326983834,1715679058506,-463.58270158,0.00084657,120]
[326983835,1715679058516,-2500.06,0.00084657,120]
[326983836,1715679058526,-10000.0,0.0008488,8]
[326983837,1715679058535,-1154.2,0.00084931,120]
[326983838,1715679058544,-500.0,0.00084931,120]
[326983839,1715679058554,-1750.81,0.00084931,120]
[326983840,1715679058564,-500.0,0.00084931,120]
[326983841,1715679058575,-1651.73,0.00084931,120]
[326983842,1715679058585,-1162.28,0.00084931,120]
[326983843,1715679058594,-1165.55,0.00084931,4]
[326983844,1715679058604,-945.35,0.00084931,120]
[326983845,1715679058613,-1094.29,0.00084931,120]
[326983846,1715679058623,-3190.22,0.00084931,120]
[326983847,1715679058632,-500.0,0.00084931,120]
[326983848,1715679058641,-13261.17,0.00084931,120]
[326983849,1715679058650,-967.1,0.00084931,120]
[326983850,1715679058660,-1228.21,0.00084931,120]
[326983851,1715679058669,-623.99,0.00084931,120]
[326983852,1715679058679,-2500.06,0.00084931,120]
[326983853,1715679058689,-11848.46079558,0.00085,120]
[326983854,1715679058699,-239.0,0.00085175,35]
[326983855,1715679058711,-2924.0,0.00085175,35]
[326983856,1715679058722,-239.0,0.00085185,35]
[326983857,1715679058731,-2924.0,0.00085185,35]
[326983858,1715679058742,-239.0,0.00085195,35]
[326983859,1715679058752,-2924.0,0.00085195,35]
[326983860,1715679058762,-1154.2,0.00085205,120]
[326983861,1715679058772,-500.0,0.00085205,120]
[326983862,1715679058781,-1750.81,0.00085205,120]
[326983863,1715679058794,-500.0,0.00085205,120]
[326983864,1715679058804,-1651.73,0.00085205,120]
[326983865,1715679058815,-1162.28,0.00085205,120]
[326983866,1715679058825,-1165.55,0.00085205,4]
[326983867,1715679058835,-945.35,0.00085205,120]
[326983868,1715679058846,-1094.29,0.00085205,120]
[326983869,1715679058855,-3190.22,0.00085205,120]
[326983870,1715679058866,-567.79774953,0.00085205,120]
[326983871,1715679058875,-13261.17,0.00085205,120]
[326983872,1715679058884,-967.1,0.00085205,120]
[326983873,1715679058894,-1228.21,0.00085205,120]
[326983874,1715679058904,-623.99,0.00085205,120]
[326983875,1715679058914,-2500.06,0.00085205,120]
[326983876,1715679058924,-163.25,0.0008528,35]
[326983877,1715679058935,-150.5,0.0008529,35]
[326983878,1715679058946,-1154.2,0.00085479,120]
[326983879,1715679058955,-500.0,0.00085479,120]
[326983880,1715679058965,-1750.81,0.00085479,120]
[326983881,1715679058974,-500.0,0.00085479,120]
[326983882,1715679058983,-1651.73,0.00085479,120]
[326983883,1715679058993,-1162.28,0.00085479,120]
[326983884,1715679059002,-1165.55,0.00085479,4]
[326983885,1715679059012,-945.35,0.00085479,120]
[326983886,1715679059021,-1094.29,0.00085479,120]
[326983887,1715679059030,-3190.22,0.00085479,120]
[326983888,1715679059040,-13261.17,0.00085479,120]
[326983889,1715679059049,-967.1,0.00085479,120]
[326983890,1715679059058,-1228.21,0.00085479,120]
[326983891,1715679059067,-623.99,0.00085479,120]
[326983892,1715679059077,-2500.06,0.00085479,120]
[326983893,1715679059086,-1154.23250587,0.00085753,120]
[326983894,1715679059095,-453.12786442,0.00085753,120]
[326983895,1715679059105,-1750.84849807,0.00085753,120]
[326983896,1715679059114,-167.10929502,0.00085753,120]
[326983897,1715679059124,-1651.85903209,0.00085753,120]
[326983898,1715679059133,-1162.37030249,0.00085753,120]
[326983899,1715679059143,-1165.66250977,0.00085753,4]
[326983900,1715679059152,-945.35075308,0.00085753,120]
[326983901,1715679059161,-1094.3700267,0.00085753,120]
[326983902,1715679059171,-3190.40586283,0.00085753,120]
[326983903,1715679059180,-13261.29401304,0.00085753,120]
[326983904,1715679059189,-967.18387842,0.00085753,120]
[326983905,1715679059199,-1228.34700578,0.00085753,120]
[326983906,1715679059209,-624.08,0.00085753,120]
[326983907,1715679059218,-2500.19965054,0.00085753,120]
[326983908,1715679059227,-8001.69669259,0.0008588,120]
[326983909,1715679059236,-5000.0,0.000859,120]
[326983910,1715679059246,-160.0,0.00086301,4]
[326983911,1715679059255,-12238.482133,0.00088,120]
[326983912,1715679059265,-1000.0,0.00088,120]
[326983913,1715679059274,-10000.0,0.00088,120]
[326983914,1715679059283,-11000.87835993,0.00088,120]
[326983915,1715679059291,-23739.39523246,0.00088,120]
[326983916,1715679059301,-157.798265,0.00088376,120]
[326983917,1715679059310,-20000.0,0.00088888,120]
[326983918,1715679059319,-813.0,0.000889,40]
[326983919,1715679059329,-5000.0,0.000889,120]
[326983920,1715679059338,-10000.0,0.000898,10]
[326983921,1715679059347,-2000.0,0.000899,40]
[326983922,1715679059356,-1971.0,0.000899,40]
[326983923,1715679059366,-1776.840364,0.000899,120]
[326983924,1715679059375,-5000.0,0.0009,39]
[326983925,1715679059384,-5000.0,0.0009,61]
[326983926,1715679059393,-500000.0,0.0009,120]
[326983927,1715679059402,-1695.33942605,0.00092,120]
[326983928,1715679059411,-15624.45221356,0.00092,120]
[326983929,1715679059421,-160.0,0.00092464,5]
[326983930,1715679059430,-279.0,0.00093,108]
[326983931,1715679059439,-1693.0,0.00093,120]
[326983932,1715679059449,-15622.0,0.00093,120]
[326983933,1715679059458,-666.79979649,0.00093,120]
[326983934,1715679059467,-151.0,0.00093616,120]
[326983935,1715679059476,-300.0,0.00094,110]
[326983936,1715679059485,-331.48,0.00094,120]
[326983937,1715679059494,-1696.24,0.00094,120]
[326983938,1715679059503,-1693.0,0.00094,120]
[326983939,1715679059512,-15622.0,0.00094,120]
[326983940,1715679059522,-665.0,0.00094,120]
[326983941,1715679059531,-171.61414,0.00094452,120]
[326983942,1715679059541,-6058.67944407,0.0009488,60]
[326983943,1715679059550,-300.0,0.00095,112]
[326983944,1715679059559,-18089.11465187,0.000955,120]
[326983945,1715679059568,-300.0,0.00096,113]
[326983946,1715679059578,-509.45,0.00096,60]
[326983947,1715679059587,-300.0,0.00097,115]
[326983948,1715679059596,-155.33108747,0.00097,120]
[326983949,1715679059605,-43093.89211518,0.00097,120]
[326983950,1715679059614,-535.1838204,0.000975,30]
[326983951,1715679059623,-300.0,0.00098,117]
[326983952,1715679059632,-20000.0,0.00098,120]
[326983953,1715679059641,-253000.0,0.00098,120]
[326983954,1715679059650,-11063.41918402,0.00098325,120]
[326983955,1715679059718,-160.0,0.00098627,6]
[326983956,1715679059729,-263.83031445,0.00098627,5]
[326983957,1715679059738,-30398.47003358,0.0009888,16]
[326983958,1715679059747,-5000.0,0.000989,120]
[326983959,1715679059755,-300.0,0.00099,118]
[326983960,1715679059764,-500.0,0.00099,120]
[326983961,1715679059773,-165.820151,0.00099178,120]
[326983962,1715679059782,-30282.78900608,0.0009924,120]
[326983963,1715679059791,-164.63327307,0.000998,120]
[326983964,1715679059800,-200.0,0.00099999,120]
[326983965,1715679059810,-500.0,0.00099999,120]
[326983966,1715679059819,-500.0,0.00099999,120]
[326983967,1715679059828,-500.0,0.00099999,120]
[326983968,1715679059837,-500.0,0.00099999,120]
[326983969,1715679059846,-500.0,0.00099999,120]
[326983970,1715679059855,-500.0,0.00099999,120]
[326983971,1715679059864,-301.71369173,0.00099999,120]
[326983972,1715679059873,-500.0,0.00099999,120]
[326983973,1715679059882,-500.0,0.00099999,120]